[Event "Late-Titled-Tuesday-Blitz-November-28-2023"]
[Site "Chess.com"]
[Date "2023.11.28"]
[Round "6"]
[White "Hypercar"]
[Black "1800_strength"]
[Result "0-1"]
[WhiteElo "2521"]
[BlackElo "2795"]
[TimeControl "180+1"]
[EndTime "15:05:44 PST"]
[Termination "1800_strength won on time"]

1. d4 {[%clk 0:02:56.1]} 1... Nf6 {[%clk 0:02:57.1]} 2. Nf3 {[%clk 0:02:54.6]}
2... c5 {[%clk 0:02:58]} 3. e3 {[%clk 0:02:52.7]} 3... g6 {[%clk 0:02:57.3]} 4.
Be2 {[%clk 0:02:53.3]} 4... Bg7 {[%clk 0:02:57.7]} 5. O-O {[%clk 0:02:54]} 5...
O-O {[%clk 0:02:58.4]} 6. b3 {[%clk 0:02:54.4]} 6... d5 {[%clk 0:02:58.9]} 7.
Bb2 {[%clk 0:02:55.1]} 7... Ne4 {[%clk 0:02:57.3]} 8. Nbd2 {[%clk 0:02:55.3]}
8... Nc6 {[%clk 0:02:58]} 9. c4 {[%clk 0:02:55.5]} 9... cxd4 {[%clk 0:02:56.2]}
10. Nxe4 {[%clk 0:02:49.5]} 10... dxe4 {[%clk 0:02:47.6]} 11. Nxd4 {[%clk
0:02:49.4]} 11... Ne5 {[%clk 0:02:38.2]} 12. Qc2 {[%clk 0:02:47.2]} 12... Nd3
{[%clk 0:02:36.8]} 13. Bxd3 {[%clk 0:02:39.4]} 13... exd3 {[%clk 0:02:37.7]} 14.
Qd2 {[%clk 0:02:39.7]} 14... e5 {[%clk 0:02:37.4]} 15. Nb5 {[%clk 0:02:38.2]}
15... Bf5 {[%clk 0:02:14.6]} 16. f3 {[%clk 0:02:32.5]} 16... e4 {[%clk
0:02:00.9]} 17. Bxg7 {[%clk 0:02:28.7]} 17... Kxg7 {[%clk 0:02:01.8]} 18. fxe4
{[%clk 0:02:28.2]} 18... Bxe4 {[%clk 0:02:02.7]} 19. Qc3+ {[%clk 0:02:22.1]}
19... Kg8 {[%clk 0:01:58.8]} 20. Rf4 {[%clk 0:02:22.1]} 20... f5 {[%clk
0:01:58.4]} 21. c5 {[%clk 0:02:12.4]} 21... Rc8 {[%clk 0:01:36.6]} 22. Qc4+
{[%clk 0:02:05]} 22... Kg7 {[%clk 0:01:29.1]} 23. Nd6 {[%clk 0:01:55.9]} 23...
Qxd6 {[%clk 0:01:13.6]} 24. cxd6 {[%clk 0:01:52.1]} 24... Rxc4 {[%clk
0:01:14.5]} 25. bxc4 {[%clk 0:01:52.4]} 25... b6 {[%clk 0:01:12.5]} 26. Rf2
{[%clk 0:01:31.1]} 26... Rd8 {[%clk 0:01:11.9]} 27. Kf1 {[%clk 0:01:19.3]} 27...
Rxd6 {[%clk 0:01:11.1]} 28. Ke1 {[%clk 0:01:19.6]} 28... Rc6 {[%clk 0:01:11.1]}
29. Rc1 {[%clk 0:01:16.1]} 29... Rc5 {[%clk 0:01:11.3]} 30. Kd2 {[%clk
0:01:12.2]} 30... Kf6 {[%clk 0:01:06.7]} 31. g4 {[%clk 0:00:59.2]} 31... Ke5
{[%clk 0:01:03.9]} 32. gxf5 {[%clk 0:00:58.6]} 32... Bxf5 {[%clk 0:00:57.3]} 33.
Kc3 {[%clk 0:00:55.7]} 33... Ke4 {[%clk 0:00:53.1]} 34. Re1 {[%clk 0:00:53.1]}
34... g5 {[%clk 0:00:47.1]} 35. h4 {[%clk 0:00:28.7]} 35... h6 {[%clk
0:00:46.8]} 36. hxg5 {[%clk 0:00:28.6]} 36... hxg5 {[%clk 0:00:47.7]} 37. Rg2
{[%clk 0:00:24.7]} 37... g4 {[%clk 0:00:32]} 38. Rf2 {[%clk 0:00:23]} 38... b5
{[%clk 0:00:32.5]} 39. Rf4+ {[%clk 0:00:17.7]} 39... Ke5 {[%clk 0:00:32.5]} 40.
Ref1 {[%clk 0:00:04.9]} 40... Be6 {[%clk 0:00:09.5]} 41. Kxd3 {[%clk 0:00:02.4]}
41... Bxc4+ {[%clk 0:00:09.8]} 42. Kd2 {[%clk 0:00:03.1]} 42... Bxf1 {[%clk
0:00:09.9]} 43. Rxf1 {[%clk 0:00:04]} 43... Rc4 {[%clk 0:00:09.8]} 44. Rf8
{[%clk 0:00:03]} 44... Ra4 {[%clk 0:00:10.2]} 45. Re8+ {[%clk 0:00:02.9]} 45...
Kd5 {[%clk 0:00:10.7]} 46. Kd3 {[%clk 0:00:02.9]} 46... Ra3+ {[%clk 0:00:10.7]}
47. Kc2 {[%clk 0:00:02.2]} 47... Rxa2+ {[%clk 0:00:11.6]} 48. Kc3 {[%clk
0:00:03.1]} 48... Ra3+ {[%clk 0:00:11.3]} 49. Kb4 {[%clk 0:00:03.7]} 49... Ra4+
{[%clk 0:00:12.2]} 50. Kxb5 {[%clk 0:00:04]} 50... Re4 {[%clk 0:00:12.1]} 51.
Rd8+ {[%clk 0:00:03.9]} 51... Ke6 {[%clk 0:00:12]} 52. Rg8 {[%clk 0:00:03.6]}
52... Kf5 {[%clk 0:00:12]} 53. Rf8+ {[%clk 0:00:04.2]} 53... Kg5 {[%clk
0:00:12.5]} 54. Rg8+ {[%clk 0:00:04.6]} 54... Kh4 {[%clk 0:00:13]} 55. Rg7
{[%clk 0:00:05.2]} 55... Rxe3 {[%clk 0:00:12.9]} 56. Rh7+ {[%clk 0:00:05.8]}
56... Kg3 {[%clk 0:00:13.2]} 57. Rxa7 {[%clk 0:00:06.7]} 57... Rf3 {[%clk
0:00:13.1]} 58. Kc4 {[%clk 0:00:07.3]} 58... Kf2 {[%clk 0:00:13.5]} 59. Kd4
{[%clk 0:00:07.8]} 59... g3 {[%clk 0:00:14.1]} 60. Ra2+ {[%clk 0:00:08.3]} 60...
Kg1 {[%clk 0:00:14.3]} 61. Ke4 {[%clk 0:00:08.6]} 61... Rf1 {[%clk 0:00:13.7]}
62. Ra3 {[%clk 0:00:07.4]} 62... g2 {[%clk 0:00:14.2]} 63. Ke3 {[%clk
0:00:07.8]} 63... Rf7 {[%clk 0:00:13.9]} 64. Ra4 {[%clk 0:00:07.9]} 64... Kh2
{[%clk 0:00:13.2]} 65. Ra2 {[%clk 0:00:06.4]} 65... Kh1 {[%clk 0:00:13.5]} 66.
Ra1+ {[%clk 0:00:02.1]} 66... g1=Q+ {[%clk 0:00:13.7]} 67. Rxg1+ {[%clk
0:00:03]} 67... Kxg1 {[%clk 0:00:14.3]} 0-1

[Event "Late-Titled-Tuesday-Blitz-November-28-2023"]
[Site "Chess.com"]
[Date "2023.11.28"]
[Round "6"]
[White "IMRosen"]
[Black "jcibarra"]
[Result "1-0"]
[WhiteElo "2713"]
[BlackElo "2879"]
[TimeControl "180+1"]
[EndTime "15:05:47 PST"]
[Termination "IMRosen won on time"]

1. e4 {[%clk 0:03:00.9]} 1... c5 {[%clk 0:02:58.4]} 2. Nc3 {[%clk 0:03:00.8]}
2... a6 {[%clk 0:02:57.3]} 3. g3 {[%clk 0:03:00.3]} 3... b5 {[%clk 0:02:57.5]}
4. Bg2 {[%clk 0:03:01]} 4... Bb7 {[%clk 0:02:57.9]} 5. d3 {[%clk 0:03:01.7]}
5... e6 {[%clk 0:02:58.5]} 6. f4 {[%clk 0:03:02.4]} 6... d5 {[%clk 0:02:58.6]}
7. f5 {[%clk 0:03:02.7]} 7... d4 {[%clk 0:02:57.1]} 8. fxe6 {[%clk 0:03:02.3]}
8... fxe6 {[%clk 0:02:58]} 9. Qh5+ {[%clk 0:03:01.5]} 9... g6 {[%clk 0:02:53.9]}
10. Qe5 {[%clk 0:03:01.4]} 10... Qf6 {[%clk 0:02:50.2]} 11. Qc7 {[%clk
0:03:01.4]} 11... Qe7 {[%clk 0:02:35.4]} 12. Qxe7+ {[%clk 0:03:01.4]} 12... Nxe7
{[%clk 0:02:32.5]} 13. Nce2 {[%clk 0:03:02.3]} 13... e5 {[%clk 0:02:30]} 14. Nf3
{[%clk 0:02:55.6]} 14... Nbc6 {[%clk 0:02:27.7]} 15. Ng5 {[%clk 0:02:49.5]}
15... Bc8 {[%clk 0:02:27]} 16. O-O {[%clk 0:02:37.1]} 16... Bg4 {[%clk
0:02:15.4]} 17. Bf3 {[%clk 0:02:25.7]} 17... Bd7 {[%clk 0:02:13.5]} 18. Bg2
{[%clk 0:02:14.9]} 18... Nd8 {[%clk 0:02:01.2]} 19. Bd2 {[%clk 0:01:44.4]} 19...
h6 {[%clk 0:01:58.2]} 20. Nf3 {[%clk 0:01:45]} 20... Bg7 {[%clk 0:01:55.4]} 21.
c3 {[%clk 0:01:40.5]} 21... dxc3 {[%clk 0:01:37.5]} 22. Bxc3 {[%clk 0:01:23.6]}
22... Ndc6 {[%clk 0:01:35.7]} 23. a3 {[%clk 0:01:23.9]} 23... a5 {[%clk
0:01:32.7]} 24. b3 {[%clk 0:01:07.6]} 24... O-O {[%clk 0:01:30.2]} 25. a4 {[%clk
0:01:06.7]} 25... b4 {[%clk 0:01:19.3]} 26. Bb2 {[%clk 0:01:06.9]} 26... Be6
{[%clk 0:01:18.8]} 27. Nd2 {[%clk 0:00:54.6]} 27... Rfd8 {[%clk 0:01:12.9]} 28.
Rf3 {[%clk 0:00:24.9]} 28... Bg4 {[%clk 0:01:11.4]} 29. Re3 {[%clk 0:00:24.8]}
29... h5 {[%clk 0:01:12]} 30. Bf3 {[%clk 0:00:01.5]} 30... Bh6 {[%clk
0:01:11.6]} 31. Kf2 {[%clk 0:00:02.2]} 31... Bxe3+ {[%clk 0:01:07.2]} 32. Kxe3
{[%clk 0:00:03.1]} 32... Nd4 {[%clk 0:01:07.8]} 33. Nxd4 {[%clk 0:00:02.8]}
33... cxd4+ {[%clk 0:01:01.1]} 34. Kf2 {[%clk 0:00:03.5]} 34... Rf8 {[%clk
0:00:59.9]} 35. Ke2 {[%clk 0:00:03.6]} 35... Bxf3+ {[%clk 0:00:53.4]} 36. Nxf3
{[%clk 0:00:04.5]} 36... Rac8 {[%clk 0:00:53.7]} 37. Nd2 {[%clk 0:00:04.6]}
37... Rc2 {[%clk 0:00:50.9]} 38. Rb1 {[%clk 0:00:04.8]} 38... Nc8 {[%clk
0:00:44.3]} 39. Kd1 {[%clk 0:00:05.1]} 39... Rc7 {[%clk 0:00:35.8]} 40. Nc4
{[%clk 0:00:04.4]} 40... Rf1+ {[%clk 0:00:34.4]} 41. Kc2 {[%clk 0:00:04.9]}
41... Rf2+ {[%clk 0:00:32.8]} 42. Kd1 {[%clk 0:00:04.4]} 42... Rcf7 {[%clk
0:00:27.3]} 43. Rc1 {[%clk 0:00:03.7]} 43... Rxh2 {[%clk 0:00:20.8]} 44. Nd2
{[%clk 0:00:04.1]} 44... Ne7 {[%clk 0:00:18]} 45. Rc8+ {[%clk 0:00:03.6]} 45...
Kg7 {[%clk 0:00:17]} 46. Rc5 {[%clk 0:00:02.1]} 46... Rff2 {[%clk 0:00:16.5]}
47. Bc1 {[%clk 0:00:02.2]} 47... Kf6 {[%clk 0:00:16.8]} 48. Rxa5 {[%clk
0:00:02.2]} 48... Rfg2 {[%clk 0:00:12.7]} 49. Ra6+ {[%clk 0:00:02.6]} 49... Kf7
{[%clk 0:00:12.9]} 50. a5 {[%clk 0:00:01.9]} 50... Rxg3 {[%clk 0:00:11.5]} 51.
Rb6 {[%clk 0:00:01.5]} 51... Rg1+ {[%clk 0:00:09.7]} 52. Kc2 {[%clk 0:00:02.1]}
52... Rhh1 {[%clk 0:00:10.2]} 53. Bb2 {[%clk 0:00:02.6]} 53... Rg2 {[%clk
0:00:10.8]} 54. a6 {[%clk 0:00:02.4]} 54... Nc8 {[%clk 0:00:06.2]} 55. Rb7+
{[%clk 0:00:02.3]} 55... Ke6 {[%clk 0:00:06.1]} 56. Rc7 {[%clk 0:00:02.6]} 56...
Nb6 {[%clk 0:00:05.9]} 57. Rc6+ {[%clk 0:00:03]} 57... Kd7 {[%clk 0:00:04.7]}
58. Rxb6 {[%clk 0:00:03.9]} 58... Rf2 {[%clk 0:00:03]} 59. a7 {[%clk 0:00:03.8]}
59... Rhh2 {[%clk 0:00:02.2]} 60. Bc1 {[%clk 0:00:03.1]} 60... Rf8 {[%clk
0:00:01.7]} 61. Rb8 {[%clk 0:00:03.6]} 61... Rhf2 {[%clk 0:00:01.2]} 62. a8=Q
{[%clk 0:00:03.3]} 62... R2f7 {[%clk 0:00:01.9]} 63. Rxf8 {[%clk 0:00:02.9]} 1-0

[Event "Late-Titled-Tuesday-Blitz-November-28-2023"]
[Site "Chess.com"]
[Date "2023.11.28"]
[Round "6"]
[White "Aradhya2000"]
[Black "NigelDwarf"]
[Result "1-0"]
[WhiteElo "2728"]
[BlackElo "2560"]
[TimeControl "180+1"]
[EndTime "15:05:47 PST"]
[Termination "Aradhya2000 won by resignation"]

1. d4 {[%clk 0:03:00.9]} 1... Nf6 {[%clk 0:02:58.7]} 2. c4 {[%clk 0:03:01.5]}
2... g6 {[%clk 0:02:58.4]} 3. g3 {[%clk 0:03:01.6]} 3... Bg7 {[%clk 0:02:58.8]}
4. Bg2 {[%clk 0:03:02.3]} 4... O-O {[%clk 0:02:59.4]} 5. Nc3 {[%clk 0:03:02.4]}
5... Nc6 {[%clk 0:02:57.4]} 6. Bf4 {[%clk 0:02:59.6]} 6... d6 {[%clk 0:02:50.6]}
7. Nf3 {[%clk 0:02:59.6]} 7... Bg4 {[%clk 0:02:44.8]} 8. O-O {[%clk 0:02:55.7]}
8... Re8 {[%clk 0:02:34]} 9. d5 {[%clk 0:02:53.9]} 9... Na5 {[%clk 0:02:27.5]}
10. b3 {[%clk 0:02:53.6]} 10... c5 {[%clk 0:02:24.7]} 11. Bd2 {[%clk 0:02:45.2]}
11... a6 {[%clk 0:02:22.7]} 12. Qc1 {[%clk 0:01:55.9]} 12... b5 {[%clk
0:02:16.9]} 13. cxb5 {[%clk 0:01:55.4]} 13... axb5 {[%clk 0:02:16.8]} 14. Nxb5
{[%clk 0:01:55]} 14... Nxd5 {[%clk 0:02:16.2]} 15. Nc3 {[%clk 0:01:55.2]} 15...
Nc7 {[%clk 0:01:53.9]} 16. Rb1 {[%clk 0:01:52.8]} 16... Qd7 {[%clk 0:01:47.5]}
17. Bh6 {[%clk 0:01:47.5]} 17... Bh8 {[%clk 0:01:44.4]} 18. Rd1 {[%clk 0:01:41]}
18... Bh3 {[%clk 0:01:41.1]} 19. Bh1 {[%clk 0:01:38.1]} 19... Nc6 {[%clk
0:01:33.1]} 20. Be3 {[%clk 0:01:34.9]} 20... Ne6 {[%clk 0:01:29.2]} 21. a3
{[%clk 0:01:26.8]} 21... Rab8 {[%clk 0:01:17.6]} 22. Ne4 {[%clk 0:01:19.4]}
22... Ncd4 {[%clk 0:01:14.6]} 23. Nxd4 {[%clk 0:01:19]} 23... Nxd4 {[%clk
0:01:14.2]} 24. Bxd4 {[%clk 0:01:18.7]} 24... cxd4 {[%clk 0:01:09.5]} 25. Qh6
{[%clk 0:01:06.4]} 25... Bg7 {[%clk 0:01:07.2]} 26. Qf4 {[%clk 0:01:01.6]} 26...
Bf5 {[%clk 0:01:04.1]} 27. e3 {[%clk 0:00:59.7]} 27... d5 {[%clk 0:01:01]} 28.
Nc5 {[%clk 0:00:58.7]} 28... Qa7 {[%clk 0:00:54.5]} 29. Rbc1 {[%clk 0:00:57]}
29... dxe3 {[%clk 0:00:51.3]} 30. Qxe3 {[%clk 0:00:55.1]} 30... d4 {[%clk
0:00:50.1]} 31. Qd2 {[%clk 0:00:43.1]} 31... Qxa3 {[%clk 0:00:48]} 32. Be4
{[%clk 0:00:30.8]} 32... Bxe4 {[%clk 0:00:44.1]} 33. Nxe4 {[%clk 0:00:31.2]}
33... Qxb3 {[%clk 0:00:41.9]} 34. Rc7 {[%clk 0:00:28.6]} 34... Qd5 {[%clk
0:00:38.2]} 35. Re1 {[%clk 0:00:27.5]} 35... d3 {[%clk 0:00:36.6]} 36. Rc5
{[%clk 0:00:21.2]} 36... Qd4 {[%clk 0:00:34]} 37. Rc3 {[%clk 0:00:20.9]} 37...
Red8 {[%clk 0:00:33.1]} 38. Re3 {[%clk 0:00:20.6]} 38... f5 {[%clk 0:00:30.4]}
39. Rexd3 {[%clk 0:00:03.5]} 39... Rb1+ {[%clk 0:00:29.2]} 40. Kg2 {[%clk
0:00:04]} 40... Qxe4+ {[%clk 0:00:28.9]} 41. f3 {[%clk 0:00:04.7]} 41... Rxd3
{[%clk 0:00:20.5]} 42. Rxd3 {[%clk 0:00:04.9]} 42... Qb4 {[%clk 0:00:16.6]} 43.
Rd8+ {[%clk 0:00:04.9]} 43... Bf8 {[%clk 0:00:16]} 44. Qd5+ {[%clk 0:00:05.5]}
44... Kg7 {[%clk 0:00:16.3]} 45. Qe5+ {[%clk 0:00:06.1]} 45... Kf7 {[%clk
0:00:14.5]} 46. Qd5+ {[%clk 0:00:06.8]} 46... e6 {[%clk 0:00:13.6]} 47. Qd7+
{[%clk 0:00:06.6]} 47... Qe7 {[%clk 0:00:12.9]} 48. Qc8 {[%clk 0:00:07]} 48...
Rb2+ {[%clk 0:00:12]} 49. Kh3 {[%clk 0:00:07.2]} 49... Rb7 {[%clk 0:00:09.7]}
50. Rxf8+ {[%clk 0:00:05.7]} 50... Qxf8 {[%clk 0:00:10.1]} 51. Qxb7+ {[%clk
0:00:06.4]} 51... Qe7 {[%clk 0:00:10.8]} 52. Qc8 {[%clk 0:00:06.8]} 52... Kg7
{[%clk 0:00:10.1]} 53. f4 {[%clk 0:00:06.4]} 53... g5 {[%clk 0:00:09.2]} 54.
fxg5 {[%clk 0:00:06.5]} 54... Kg6 {[%clk 0:00:05.3]} 55. Qg8+ {[%clk 0:00:06.1]}
55... Qg7 {[%clk 0:00:04]} 56. Qxe6+ {[%clk 0:00:05.7]} 56... Kh5 {[%clk
0:00:04]} 57. Qxf5 {[%clk 0:00:05.4]} 57... Qxg5 {[%clk 0:00:02.6]} 58. Qxh7+
{[%clk 0:00:05.4]} 58... Qh6 {[%clk 0:00:02.3]} 59. g4+ {[%clk 0:00:05.9]} 1-0

[Event "Late-Titled-Tuesday-Blitz-November-28-2023"]
[Site "Chess.com"]
[Date "2023.11.28"]
[Round "6"]
[White "GMthekingindian"]
[Black "noblerone"]
[Result "0-1"]
[WhiteElo "2325"]
[BlackElo "2493"]
[TimeControl "180+1"]
[EndTime "15:05:48 PST"]
[Termination "noblerone won by resignation"]

1. e4 {[%clk 0:03:00.9]} 1... e6 {[%clk 0:02:50.7]} 2. Nf3 {[%clk 0:02:59.7]}
2... d5 {[%clk 0:02:49.1]} 3. Nc3 {[%clk 0:03:00.1]} 3... dxe4 {[%clk
0:02:46.6]} 4. Nxe4 {[%clk 0:03:01]} 4... Nd7 {[%clk 0:02:46.7]} 5. d4 {[%clk
0:03:00.1]} 5... Ngf6 {[%clk 0:02:45.8]} 6. Bd3 {[%clk 0:03:00.1]} 6... Nxe4
{[%clk 0:02:43.8]} 7. Bxe4 {[%clk 0:03:00.4]} 7... Nf6 {[%clk 0:02:44.5]} 8. Bd3
{[%clk 0:03:00.6]} 8... c5 {[%clk 0:02:39.9]} 9. Bg5 {[%clk 0:02:56.8]} 9...
cxd4 {[%clk 0:02:32.8]} 10. O-O {[%clk 0:02:56.9]} 10... Bc5 {[%clk 0:02:17.8]}
11. Qe2 {[%clk 0:02:51.8]} 11... O-O {[%clk 0:02:08.5]} 12. Rad1 {[%clk
0:02:49.6]} 12... Be7 {[%clk 0:01:14.1]} 13. c3 {[%clk 0:02:38.7]} 13... Qa5
{[%clk 0:01:11.1]} 14. cxd4 {[%clk 0:02:32.1]} 14... Re8 {[%clk 0:01:00.2]} 15.
a3 {[%clk 0:02:29.1]} 15... Bd7 {[%clk 0:00:57.3]} 16. Ne5 {[%clk 0:02:27.6]}
16... Bc6 {[%clk 0:00:53.7]} 17. Bxf6 {[%clk 0:01:52]} 17... Bxf6 {[%clk
0:00:53.5]} 18. Nxc6 {[%clk 0:01:52.6]} 18... bxc6 {[%clk 0:00:54.1]} 19. Qe4
{[%clk 0:01:50]} 19... g6 {[%clk 0:00:53.4]} 20. Qxc6 {[%clk 0:01:47.5]} 20...
Bxd4 {[%clk 0:00:49.8]} 21. Bxg6 {[%clk 0:01:36.9]} 21... Bxf2+ {[%clk
0:00:47.9]} 22. Rxf2 {[%clk 0:01:37.4]} 22... hxg6 {[%clk 0:00:47.7]} 23. Rdf1
{[%clk 0:01:14.9]} 23... Rf8 {[%clk 0:00:22.9]} 24. Rxf7 {[%clk 0:01:07.9]}
24... Rxf7 {[%clk 0:00:23.2]} 25. Qxa8+ {[%clk 0:01:07.6]} 25... Kg7 {[%clk
0:00:22.7]} 26. Rxf7+ {[%clk 0:01:03.3]} 26... Kxf7 {[%clk 0:00:23.6]} 27. Qf3+
{[%clk 0:01:02.9]} 27... Kg8 {[%clk 0:00:21.6]} 28. Qe4 {[%clk 0:00:51.3]} 28...
Qc5+ {[%clk 0:00:18.5]} 29. Kf1 {[%clk 0:00:46.6]} 29... Qc1+ {[%clk 0:00:18.2]}
30. Kf2 {[%clk 0:00:43.5]} 30... Qxb2+ {[%clk 0:00:17.5]} 31. Kf1 {[%clk
0:00:43.1]} 31... Qc1+ {[%clk 0:00:16.3]} 32. Kf2 {[%clk 0:00:43.1]} 32... Kf7
{[%clk 0:00:15]} 33. Qb7+ {[%clk 0:00:40.1]} 33... Kf6 {[%clk 0:00:15.3]} 34.
Qxa7 {[%clk 0:00:40.1]} 34... Qd2+ {[%clk 0:00:15.4]} 35. Kf3 {[%clk 0:00:40.2]}
35... Qd5+ {[%clk 0:00:13.9]} 36. Kg3 {[%clk 0:00:40.1]} 36... Qg5+ {[%clk
0:00:13.4]} 37. Kf2 {[%clk 0:00:39.2]} 37... Qh4+ {[%clk 0:00:12.5]} 38. Kf3
{[%clk 0:00:36]} 38... Qh5+ {[%clk 0:00:10.7]} 39. g4 {[%clk 0:00:27.4]} 39...
Qh3+ {[%clk 0:00:10.2]} 40. Kf4 {[%clk 0:00:19.5]} 40... Qxh2+ {[%clk 0:00:10]}
41. Ke4 {[%clk 0:00:16.2]} 41... Qg2+ {[%clk 0:00:09]} 42. Kd3 {[%clk
0:00:14.5]} 42... Qf3+ {[%clk 0:00:06.9]} 43. Kc2 {[%clk 0:00:14.5]} 43... Qxg4
{[%clk 0:00:07.2]} 44. a4 {[%clk 0:00:10.5]} 44... Qc4+ {[%clk 0:00:07]} 45. Kb2
{[%clk 0:00:10.5]} 45... g5 {[%clk 0:00:07]} 46. a5 {[%clk 0:00:10.6]} 46...
Qb4+ {[%clk 0:00:07]} 47. Kc2 {[%clk 0:00:10.6]} 47... Qc4+ {[%clk 0:00:07.4]}
48. Kb2 {[%clk 0:00:10.5]} 48... g4 {[%clk 0:00:07.7]} 49. a6 {[%clk 0:00:09.5]}
49... Qb4+ {[%clk 0:00:07.6]} 50. Kc2 {[%clk 0:00:09.4]} 50... Qc4+ {[%clk
0:00:08.5]} 51. Kb2 {[%clk 0:00:09.9]} 51... g3 {[%clk 0:00:07.6]} 52. Qb7
{[%clk 0:00:07.9]} 52... Qe2+ {[%clk 0:00:07.1]} 53. Kb3 {[%clk 0:00:08.2]}
53... g2 {[%clk 0:00:06.9]} 54. Qb6 {[%clk 0:00:03.4]} 54... Qf3+ {[%clk
0:00:06.7]} 55. Kb4 {[%clk 0:00:03.3]} 55... Qe4+ {[%clk 0:00:06.6]} 56. Ka5
{[%clk 0:00:03.3]} 56... Qd5+ {[%clk 0:00:06.4]} 57. Ka4 {[%clk 0:00:03.8]}
57... Qa2+ {[%clk 0:00:06.2]} 58. Kb5 {[%clk 0:00:02.4]} 58... Qb2+ {[%clk
0:00:06.6]} 59. Kc6 {[%clk 0:00:02.8]} 59... Qxb6+ {[%clk 0:00:07.5]} 60. Kxb6
{[%clk 0:00:03.7]} 60... g1=Q+ {[%clk 0:00:07.9]} 61. Kb7 {[%clk 0:00:04.6]}
61... Qb1+ {[%clk 0:00:07.8]} 62. Ka8 {[%clk 0:00:04.4]} 62... Qa2 {[%clk
0:00:07.5]} 63. a7 {[%clk 0:00:05.3]} 63... Qxa7+ {[%clk 0:00:07.5]} 64. Kxa7
{[%clk 0:00:05.5]} 64... e5 {[%clk 0:00:08.4]} 0-1

[Event "Late-Titled-Tuesday-Blitz-November-28-2023"]
[Site "Chess.com"]
[Date "2023.11.28"]
[Round "6"]
[White "stasOR4ik"]
[Black "Hilary46"]
[Result "0-1"]
[WhiteElo "2482"]
[BlackElo "2633"]
[TimeControl "180+1"]
[EndTime "15:05:57 PST"]
[Termination "Hilary46 won by resignation"]

1. e4 {[%clk 0:03:00.9]} 1... e5 {[%clk 0:02:56.6]} 2. Nf3 {[%clk 0:03:00.9]}
2... Nc6 {[%clk 0:02:56.9]} 3. Bb5 {[%clk 0:03:01.1]} 3... a6 {[%clk 0:02:57.4]}
4. Ba4 {[%clk 0:03:01.6]} 4... Nf6 {[%clk 0:02:57.9]} 5. O-O {[%clk 0:03:01.9]}
5... Nxe4 {[%clk 0:02:58.4]} 6. Re1 {[%clk 0:03:02]} 6... Nc5 {[%clk 0:02:58]}
7. Bxc6 {[%clk 0:03:01.5]} 7... dxc6 {[%clk 0:02:58.9]} 8. Nxe5 {[%clk
0:03:01.2]} 8... Be7 {[%clk 0:02:58.9]} 9. d4 {[%clk 0:03:01.4]} 9... Ne6 {[%clk
0:02:59.4]} 10. c3 {[%clk 0:03:02]} 10... O-O {[%clk 0:02:59.8]} 11. Nd2 {[%clk
0:03:01.7]} 11... c5 {[%clk 0:03:00.3]} 12. Ndf3 {[%clk 0:02:55.5]} 12... cxd4
{[%clk 0:03:00.7]} 13. Nxd4 {[%clk 0:02:54.3]} 13... Nxd4 {[%clk 0:02:59.7]} 14.
Qxd4 {[%clk 0:02:55]} 14... Qxd4 {[%clk 0:02:59.7]} 15. cxd4 {[%clk 0:02:55.9]}
15... Bf6 {[%clk 0:02:56.7]} 16. Be3 {[%clk 0:02:51.8]} 16... Be6 {[%clk
0:02:56.5]} 17. a3 {[%clk 0:02:50.7]} 17... Rad8 {[%clk 0:02:52.2]} 18. Rac1
{[%clk 0:02:49.7]} 18... c6 {[%clk 0:02:52.7]} 19. f4 {[%clk 0:02:40.8]} 19...
h6 {[%clk 0:02:43.9]} 20. Kf2 {[%clk 0:02:37.3]} 20... Rfe8 {[%clk 0:02:33]} 21.
Red1 {[%clk 0:02:27.1]} 21... g6 {[%clk 0:02:31.3]} 22. Rd3 {[%clk 0:02:25.3]}
22... Bg7 {[%clk 0:02:30.4]} 23. h3 {[%clk 0:02:18.2]} 23... f6 {[%clk
0:02:29.4]} 24. Nf3 {[%clk 0:02:08.1]} 24... g5 {[%clk 0:02:23.9]} 25. g4 {[%clk
0:01:28.8]} 25... Rd7 {[%clk 0:01:49.2]} 26. Kg3 {[%clk 0:01:26.7]} 26... Bd5
{[%clk 0:01:46]} 27. h4 {[%clk 0:01:13.7]} 27... Rde7 {[%clk 0:01:45.4]} 28. Bf2
{[%clk 0:01:06]} 28... Re4 {[%clk 0:01:39.6]} 29. fxg5 {[%clk 0:01:01.3]} 29...
fxg5 {[%clk 0:01:33.4]} 30. hxg5 {[%clk 0:01:00.3]} 30... Be6 {[%clk 0:01:33.3]}
31. Nh2 {[%clk 0:00:46.9]} 31... hxg5 {[%clk 0:01:32.5]} 32. Rc5 {[%clk
0:00:31]} 32... Bd5 {[%clk 0:01:23.5]} 33. Nf3 {[%clk 0:00:19.7]} 33... Bf6
{[%clk 0:01:23.8]} 34. Rc1 {[%clk 0:00:15.3]} 34... Kf7 {[%clk 0:01:23.2]} 35.
Re1 {[%clk 0:00:14.4]} 35... Rxe1 {[%clk 0:01:22.2]} 36. Nxe1 {[%clk 0:00:14]}
36... Bd8 {[%clk 0:01:20.3]} 37. Nf3 {[%clk 0:00:13.3]} 37... Bc7+ {[%clk
0:01:18.9]} 38. Kg2 {[%clk 0:00:12.9]} 38... Kg6 {[%clk 0:01:14.1]} 39. Bg3
{[%clk 0:00:11.2]} 39... Bf4 {[%clk 0:01:09.7]} 40. Bxf4 {[%clk 0:00:11.1]}
40... gxf4 {[%clk 0:01:10.6]} 41. Kf2 {[%clk 0:00:10.2]} 41... Kf6 {[%clk
0:01:05.7]} 42. Ne5 {[%clk 0:00:09.3]} 42... Rh8 {[%clk 0:01:06.2]} 43. Rd1
{[%clk 0:00:06.7]} 43... Rh2+ {[%clk 0:01:05.6]} 44. Ke1 {[%clk 0:00:07.1]}
44... Rxb2 {[%clk 0:00:58.8]} 45. Rd2 {[%clk 0:00:07.6]} 45... Rb3 {[%clk
0:00:49.9]} 46. Rd3 {[%clk 0:00:06.8]} 46... Rxd3 {[%clk 0:00:47.4]} 47. Nxd3
{[%clk 0:00:07]} 47... Kg5 {[%clk 0:00:48.3]} 48. Ne5 {[%clk 0:00:06.5]} 48...
Be6 {[%clk 0:00:48.3]} 49. Kf2 {[%clk 0:00:05.8]} 49... Bxg4 {[%clk 0:00:48.6]}
50. Nf7+ {[%clk 0:00:06]} 50... Kf6 {[%clk 0:00:45.5]} 51. Nd6 {[%clk
0:00:06.1]} 51... b5 {[%clk 0:00:44]} 52. Ne4+ {[%clk 0:00:05.2]} 52... Ke6
{[%clk 0:00:35.4]} 53. Nc5+ {[%clk 0:00:05.6]} 53... Kd5 {[%clk 0:00:35.8]} 54.
Nxa6 {[%clk 0:00:05]} 54... Kxd4 {[%clk 0:00:36.2]} 55. Nb4 {[%clk 0:00:03.9]}
55... c5 {[%clk 0:00:35.2]} 56. Nc6+ {[%clk 0:00:03.6]} 56... Kc3 {[%clk
0:00:34]} 57. Ne7 {[%clk 0:00:03.3]} 57... Be6 {[%clk 0:00:22.2]} 58. Ng6 {[%clk
0:00:03.6]} 58... b4 {[%clk 0:00:20.7]} 59. Nxf4 {[%clk 0:00:04]} 59... Bc4
{[%clk 0:00:20.8]} 60. axb4 {[%clk 0:00:04.1]} 60... cxb4 {[%clk 0:00:21.7]} 61.
Ke3 {[%clk 0:00:04]} 61... b3 {[%clk 0:00:21.7]} 62. Ng2 {[%clk 0:00:03]} 62...
b2 {[%clk 0:00:21.6]} 63. Ne1 {[%clk 0:00:02.5]} 63... b1=Q {[%clk 0:00:21.7]}
64. Nf3 {[%clk 0:00:03.4]} 64... Qd3+ {[%clk 0:00:20.6]} 65. Kf4 {[%clk
0:00:04.2]} 65... Bd5 {[%clk 0:00:19.7]} 66. Ng5 {[%clk 0:00:03.9]} 66... Qd4+
{[%clk 0:00:19.3]} 67. Kf5 {[%clk 0:00:04.1]} 67... Bb7 {[%clk 0:00:18.9]} 68.
Ne6 {[%clk 0:00:04.1]} 68... Bc8 {[%clk 0:00:19.2]} 69. Kg5 {[%clk 0:00:01.8]}
69... Bxe6 {[%clk 0:00:18.6]} 70. Kh5 {[%clk 0:00:02.4]} 70... Ba2 {[%clk
0:00:18.6]} 71. Kg5 {[%clk 0:00:02.6]} 71... Kd3 {[%clk 0:00:18.9]} 0-1